[Event "Romanian Rapid Open 2022"]
[Site "Sebes"]
[Date "2022.12.02"]
[Round "7.28"]
[White "Kedves, Lorand"]
[Black "Cordea, David"]
[Result "0-1"]
[ECO "A48"]
[WhiteElo "1641"]
[BlackElo "2049"]
[Annotator "TA"]
[PlyCount "102"]
[EventDate "2022.12.02"]
[EventType "rapid"]
[EventCountry "ROU"]
[SourceTitle "playchess.com"]
[Source "ChessBase"]
[SourceQuality "1"]
[TimeControl "600+5"]

{[%evp 18,102,27,2,11,0,7,0,6,16,22,-12,34,29,27,22,60,11,66,48,44,55,50,30,89,75,185,185,185,187,243,0,0,0,0,0,0,0,-13,-93,-80,-144,-136,-137,-126,-321,-313,-323,-320,-314,-288,-336,-283,-295,-291,-289,-281,-378,-370,-554,-522,-522,-519,-497,-487,-553,-534,-566,-527,-941,-918,-1525,-1514,-2822,-2608,-29976,-29975,-29981,-6125,-29982,-29983,-2571,-1669,-2635,-2117,-12840,-12840]} 1. d4 {[%emt 0:00:01]} Nf6 {[%emt 0:00:02]} 2. Bf4 {[%emt 0:00:02]} g6 {[%emt 0:00:03]} 3. e3 {[%emt 0:00:01]} Bg7 {[%emt 0:00:01]} 4. h3 {[%emt 0:00:01]} O-O {[%emt 0:00:03]} 5. Nf3 {[%emt 0:00:01]} c5 {[%emt 0:00:03]} 6. c3 {[%emt 0:00:01]} b6 {[%emt 0:00:10]} 7. Nbd2 {[%emt 0:00:02]} Bb7 {[%emt 0:00:01]} 8. Be2 {[%emt 0:00:02]} d6 {[%emt 0:00:12]} 9. O-O {[%emt 0:00:05]} Nbd7 {[%emt 0:00:02]} 10. Rc1 {[%emt 0:00:13]} Re8 {[%emt 0:00:17] A48: 1 d4 Nf6 2 Nf3 g6: Torre, London and Colle Systems.} 11. Bg3 {[%emt 0:00:04] [#]} (11. Qb3 {seems wilder.} e5 12. dxe5 Nxe5 13. Rfd1) 11... e5 $146 {[%emt 0:00:08]} ({Predecessor:} 11... d5 12. Bb5 cxd4 13. cxd4 Rc8 14. Qa4 Ne4 15. Bxd7 {1-0 (15) Klawitter,B (1146)-Lauer,F (1044) LSS email 2012}) 12. dxe5 {[%emt 0:00:02]} Nxe5 {[%emt 0:00:05] The position is equal.} 13. Nxe5 {[%emt 0:00:03]} dxe5 {[%emt 0:00:02]} 14. Bf3 {[%emt 0:00:04]} e4 {[%emt 0:00:17]} (14... Bxf3 $11 {was preferrable.} 15. Nxf3 e4) 15. Be2 $14 {[%emt 0:00:03][%cal Bf3e2,Be2c4,Bc4b5][%mdl 32]} Qe7 {[%emt 0:00:53]} 16. Qb3 {[%emt 0:00:15]} Rad8 {[%emt 0:02:47]} 17. Rcd1 {[%emt 0:00:11]} (17. Rfd1 $14 {should be considered.}) 17... Rd5 {[%emt 0:00:34]} ({Better is} 17... Nd7 $11) 18. Bc4 {[%emt 0:00:35]} Rdd8 {[%emt 0:00:06]} 19. Bb5 {[%emt 0:00:05]} Rf8 {[%emt 0:00:08]} 20. Bh4 {[%emt 0:00:46]} (20. Qa3 $5 {[%cal Ra3a7]}) 20... a6 {[%emt 0:00:52]} (20... Rd5 $11 {keeps the balance.}) 21. Be2 $16 {[%emt 0:00:15]} Qc7 {[%emt 0:00:04]} (21... b5 $16) 22. Bg3 $1 $18 {[%emt 0:00:07]} Qc6 {[%emt 0:00:02]} 23. Nc4 $1 {[%emt 0:00:12]} Nd5 {[%emt 0:00:07] [#]} (23... b5 $142) 24. Ne5 $2 {[%emt 0:01:21]} (24. Nd6 $1 $18 {[%mdl 512]}) 24... Qe6 $11 {[%emt 0:00:17]} 25. Nc4 {[%emt 0:00:27][%cal Oc4d6] aiming for Nd6!} b5 {[%emt 0:00:05]} 26. Na5 {[%emt 0:00:17]} Ba8 {[%emt 0:00:13] Black wants to play ...Qb6.} 27. c4 {[%emt 0:00:02]} Qb6 $1 {[%emt 0:01:09]} 28. cxd5 {[%emt 0:00:53]} (28. Bh4 $1 $11 f6 29. cxd5 Qxa5 30. Bg4) 28... Qxa5 $17 {[%emt 0:00:02]} 29. a3 {[%emt 0:00:23]} (29. d6 $142) 29... c4 {[%emt 0:00:03]} 30. Qc2 {[%emt 0:00:28]} Bxd5 {[%emt 0:00:11]} 31. Rd2 $2 {[%emt 0:00:30]} (31. Bh4 $17) 31... c3 $19 {[%emt 0:00:34]} 32. bxc3 {[%emt 0:00:39]} Bxc3 {[%emt 0:00:08]} ({Not} 32... Qxa3 33. c4 bxc4 34. Rfd1 $17) 33. Rdd1 {[%emt 0:00:33]} Qxa3 {[%emt 0:00:07]} 34. Qb1 {[%emt 0:00:33]} Bf6 {[%emt 0:00:47]} 35. Bc7 {[%emt 0:00:33]} Rd7 {[%emt 0:00:15]} 36. Bb6 {[%emt 0:00:03]} Rb8 {[%emt 0:01:17]} 37. Bg4 {[%emt 0:00:22]} Ba2 {[%emt 0:00:17][%cal Bd5a2,Ba2b1,Bb1d3][%mdl 32]} 38. Bc5 {[%emt 0:00:46]} (38. Qc1 {was the only chance.} Qxc1 39. Rxc1) 38... Bxb1 {[%emt 0:00:22]} 39. Bxa3 {[%emt 0:00:02]} Rxd1 {[%emt 0:00:01]} 40. Rxd1 {[%emt 0:00:01]} Bd3 {[%emt 0:00:03] Threatens to win with ...b4.} 41. Bd6 {[%emt 0:00:14]} Rb6 {[%emt 0:00:06]} 42. Bc7 {[%emt 0:00:08]} Rb7 {[%emt 0:00:00]} 43. Ba5 {[%emt 0:02:14]} b4 {[%emt 0:00:05]} 44. Rc1 {[%emt 0:00:00]} b3 {[%emt 0:00:14] Hoping for ...b2.} 45. Rc8+ {[%emt 0:00:10]} Kg7 {[%emt 0:00:04]} 46. Rc1 {[%emt 0:00:00]} b2 {[%emt 0:00:02]} 47. Rd1 {[%emt 0:00:00]} b1=Q {[%emt 0:00:03] ( -> ...Qa2)} 48. Rxb1 {[%emt 0:00:00]} Rxb1+ {[%emt 0:00:01]} 49. Kh2 {[%emt 0:00:00]} Ra1 {[%emt 0:00:07] Black is clearly winning.} 50. Bb6 {[%emt 0:00:03]} a5 {[%emt 0:00:01]} 51. Bd7 {[%emt 0:00:10]} Be5+ {[%emt 0:00:04] What a bad dream for White.   Weighted Error Value: White=0.82/Black=0.15 (very precise)} 0-1

[Event "Romanian Rapid Open 2022"]
[Site "Sebes"]
[Date "2022.12.02"]
[Round "7.29"]
[White "Ambru, Dan-Calin"]
[Black "Sulita, Vlad-Petre"]
[Result "1-0"]
[ECO "A50"]
[WhiteElo "1957"]
[BlackElo "1632"]
[Annotator "TA"]
[PlyCount "83"]
[EventDate "2022.12.02"]
[EventType "rapid"]
[EventCountry "ROU"]
[SourceTitle "playchess.com"]
[Source "ChessBase"]
[SourceQuality "1"]
[TimeControl "600+5"]

{[%evp 9,82,29,113,99,107,79,58,66,83,59,118,99,156,129,127,107,474,497,587,591,682,669,673,670,681,680,687,625,672,666,672,654,650,619,656,654,697,689,737,736,840,834,816,764,766,617,716,654,647,643,690,697,795,786,836,720,811,692,731,728,1097,1086,1037,1028,1097,950,2168,2252,2142,1256,29975,29976,29988,29989,29999]} 1. d4 {[%emt 0:00:03]} Nf6 {[%emt 0:00:02]} 2. c4 {[%emt 0:00:01]} a6 {[%emt 0:00:02]} 3. Nc3 {[%emt 0:00:07]} b5 {[%emt 0:00:02]} 4. cxb5 {[%emt 0:00:05]} axb5 {[%emt 0:00:02]} 5. Nxb5 {[%emt 0:00:05]} e5 {[%emt 0:00:02]} (5... e6 $11) 6. dxe5 $16 {[%emt 0:00:27] A50: Queen's Fianchetto Defence (1 d4 Nf6 2 c4 b6).} Ne4 {[%emt 0:00:01]} 7. Nc3 {[%emt 0:01:09]} Bb4 {[%emt 0:00:03]} 8. Bd2 {[%emt 0:00:46] White is slightly better.} Nxd2 {[%emt 0:00:27]} 9. Qxd2 {[%emt 0:00:02] [#]} Qe7 $146 {[%emt 0:00:00]} (9... Nc6 $14) ({Predecessor:} 9... Nc6 10. Nf3 O-O 11. e3 Re8 12. Be2 Nxe5 13. O-O Bb7 14. Nxe5 Rxe5 15. f4 Re8 {1-0 (87) Lashkin,J (2399)-Fishbein,A (2411) Chess.com INT 2022}) 10. Nf3 {[%emt 0:00:15]} Ba6 {[%emt 0:00:38]} (10... Nc6 $142) 11. e3 {[%emt 0:00:47]} Bxf1 {[%emt 0:00:05]} 12. Kxf1 {[%emt 0:00:02]} O-O $2 {[%emt 0:00:10][%mdl 8192] [#] Black cannot hold the game after this.} (12... Nc6 $16) 13. Nd5 $1 $18 {[%emt 0:00:15][%csl LRb4,LRc7,LRe7]} Qc5 {[%emt 0:01:28]} 14. Nxb4 {[%emt 0:00:12]} d6 {[%emt 0:00:18]} 15. exd6 {[%emt 0:00:14]} cxd6 {[%emt 0:00:02]} 16. Nd4 {[%emt 0:00:12]} Nd7 {[%emt 0:00:12]} 17. Rc1 {[%emt 0:00:16]} Qg5 {[%emt 0:00:06]} 18. f4 {[%emt 0:00:11]} Qh6 {[%emt 0:00:30]} 19. Nf5 {[%emt 0:00:48]} Qe6 {[%emt 0:00:25]} 20. Qd5 {[%emt 0:00:23]} Qf6 {[%emt 0:00:45]} 21. Nd4 {[%emt 0:00:55]} Rfe8 {[%emt 0:00:15]} 22. Kf2 {[%emt 0:00:22][%cal Bf1f2,Bf2g1,Bg1h1][%mdl 32]} Nc5 {[%emt 0:00:11]} 23. Rhe1 {[%emt 0:00:40]} Rab8 {[%emt 0:00:03]} 24. a3 {[%emt 0:00:19]} Qh4+ {[%emt 0:01:50]} 25. Kg1 {[%emt 0:00:09]} Qf6 {[%emt 0:00:12]} 26. g4 {[%emt 0:00:44]} h6 {[%emt 0:00:06]} 27. g5 {[%emt 0:00:08]} Qg6 {[%emt 0:00:07]} 28. Kh1 {[%emt 0:00:31]} hxg5 {[%emt 0:00:15]} 29. Qxg5 {[%emt 0:00:07]} Qe4+ {[%emt 0:00:02]} 30. Qg2 {[%emt 0:00:02]} Qh7 {[%emt 0:00:08]} 31. f5 {[%emt 0:00:49][%cal Bf4f5,Bf5f6][%mdl 32]} Qh6 {[%emt 0:00:11]} 32. Qf3 {[%emt 0:00:26]} Ne4 {[%emt 0:00:37]} 33. Nd3 {[%emt 0:00:23]} Ng5 {[%emt 0:00:20]} 34. Qg2 {[%emt 0:00:08]} Nh3 {[%emt 0:00:11]} 35. f6 {[%emt 0:00:15]} g6 {[%emt 0:00:07]} 36. Nf5 {[%emt 0:00:09]} Qh5 {[%emt 0:00:11]} 37. Ne7+ {[%emt 0:00:08]} Kh7 {[%emt 0:00:04]} 38. Nf4 {[%emt 0:00:15]} Nxf4 {[%emt 0:00:03]} 39. exf4 {[%emt 0:00:00] White threatens Re3 and mate.} Qh4 {[%emt 0:00:10]} 40. Qg5 {[%emt 0:00:13][%cal Rg5h4] White mates.} Qh3 {[%emt 0:00:18] [#]} 41. Re3 $3 {[%emt 0:00:14]} Qxe3 {[%emt 0:00:13]} (41... Qh5 42. Qg2) 42. Qh4# {[%emt 0:00:01] Weighted Error Value: White=0.12 (very precise) /Black=0.61} 1-0

[Event "Romanian Rapid Open 2022"]
[Site "Sebes"]
[Date "2022.12.02"]
[Round "7.30"]
[White "Tarciuc, Ianis-Mihai"]
[Black "Nagy-Elek, Tamas"]
[Result "1-0"]
[ECO "D11"]
[WhiteElo "1642"]
[BlackElo "1976"]
[Annotator "TA"]
[PlyCount "66"]
[EventDate "2022.12.02"]
[EventType "rapid"]
[EventCountry "ROU"]
[SourceTitle "playchess.com"]
[Source "ChessBase"]
[SourceQuality "1"]
[TimeControl "600+5"]

{[%evp 18,66,3,-4,-8,-8,35,49,68,74,66,65,126,78,142,-393,-383,-422,-66,-73,-19,-14,-14,-16,-15,-18,-17,-17,-15,-15,-15,-14,-13,-13,-13,-13,-13,-13,-8,-8,-6,-13,0,0,0,-13,-20,-23,-10,-19,0]} 1. c4 {[%emt 0:00:02]} c6 {[%emt 0:00:03]} 2. d4 {[%emt 0:00:06]} d5 {[%emt 0:00:02]} 3. Nf3 {[%emt 0:00:11]} Nf6 {[%emt 0:00:04]} 4. g3 {[%emt 0:00:20]} Bf5 {[%emt 0:00:11]} 5. Bg2 {[%emt 0:00:04]} e6 {[%emt 0:00:06]} 6. Nc3 {[%emt 0:00:07]} h6 {[%emt 0:00:04]} 7. O-O {[%emt 0:00:07]} Be7 {[%emt 0:00:05]} 8. b3 {[%emt 0:00:24]} O-O {[%emt 0:00:05]} 9. Bb2 {[%emt 0:00:14]} Nbd7 {[%emt 0:00:37]} 10. Ne5 {[%emt 0:00:44]} Nxe5 {[%emt 0:00:55] D11: Slav Defence: 3 Nf3 sidelines and 3...Nf6 4 e3 Bg4.} 11. dxe5 {[%emt 0:00:02]} Ng4 {[%emt 0:01:21] [#]} 12. cxd5 $146 {[%emt 0:00:05]} ({Predecessor:} 12. e4 dxe4 13. Nxe4 Qxd1 14. Raxd1 Bxe4 15. Bxe4 Bc5 16. b4 Nxf2 17. Rxf2 Rad8 18. Rxd8 Bxf2+ 19. Kxf2 Rxd8 {1-0 (52) Scherer,M (2306)-Ketterer,C (2276) Waldshut 2002}) 12... cxd5 {[%emt 0:00:16] White is slightly better.} 13. e4 {[%emt 0:00:37] Against f6} dxe4 {[%emt 0:00:32]} 14. Nxe4 {[%emt 0:00:16] Threatens to win with h3.} Qb8 {[%emt 0:01:45] [#]} (14... Qb6 $14) 15. Nd6 {[%emt 0:00:30]} (15. Qd7 $142 $1 {[%cal Rd7e7]} Re8 16. Nd6 Bxd6 17. exd6) 15... Rd8 {[%emt 0:00:29] [#]} (15... Bxd6 $142 16. exd6 Rd8) 16. Bxb7 $2 {[%emt 0:03:16][%mdl 8192] White is more active.} (16. Nxf5 $1 $16 {and life is bright.} exf5 17. Qe2) 16... Bxd6 $19 {[%emt 0:00:25]} 17. Bxa8 {[%emt 0:00:01]} Bxe5 {[%emt 0:00:31]} (17... Bc5 $19 18. Qf3 (18. Qc1 $2 Nxf2 19. Rxf2 Bxf2+ 20. Kxf2 Qxa8 $19) 18... Rd2) 18. Bxe5 $15 {[%emt 0:00:05]} Qxa8 {[%emt 0:00:45]} (18... Nxe5 $17 19. Qe2 Bd3) 19. Qe2 $11 {[%emt 0:00:44] Bb2 is the strong threat.} Nxe5 {[%emt 0:00:24]} 20. Qxe5 {[%emt 0:00:04] And now Rfe1 would win.} Bh3 {[%emt 0:00:13][%csl Gh3][%cal Ra8g2]} 21. f3 $1 {[%emt 0:00:20]} Bxf1 {[%emt 0:00:12]} 22. Rxf1 {[%emt 0:00:03][%mdl 4096] Endgame KQR-KQR} Rd2 {[%emt 0:00:17]} 23. Rf2 {[%emt 0:00:13]} Rd1+ {[%emt 0:00:17]} 24. Kg2 {[%emt 0:00:17]} Qd8 {[%emt 0:00:16]} 25. Qe3 {[%emt 0:00:59]} a6 {[%emt 0:00:53]} 26. Qe2 {[%emt 0:01:03]} Qd6 {[%emt 0:00:24]} 27. Qc2 {[%emt 0:00:09]} Rd5 {[%emt 0:00:30]} (27... g6 {keeps more tension.} 28. Qc8+ Kh7 29. Qc3 Rd3) 28. Qc8+ {[%emt 0:00:15]} Kh7 $1 {[%emt 0:00:06]} 29. Qc2+ {[%emt 0:00:03]} Kg8 {[%emt 0:00:08]} 30. Qc8+ {[%emt 0:00:08]} Kh7 $1 {[%emt 0:00:01]} 31. Qc2+ {[%emt 0:00:02]} g6 {[%emt 0:00:02]} 32. Qc3 {[%emt 0:00:35]} h5 {[%emt 0:00:30]} 33. Rc2 {[%emt 0:00:16]} Rd3 {[%emt 0:00:08][%mdl 32768] Weighted Error Value: White=0.27 (precise) /Black=0.28 (precise) . Loss on time!?} 1-0

[Event "Romanian Rapid Open 2022"]
[Site "Sebes"]
[Date "2022.12.02"]
[Round "7.31"]
[White "Iosif, Mihai-Aurelian"]
[Black "Arion, Ilie"]
[Result "0-1"]
[ECO "D00"]
[WhiteElo "1549"]
[BlackElo "1924"]
[Annotator "TA"]
[PlyCount "104"]
[EventDate "2022.12.02"]
[EventType "rapid"]
[EventCountry "ROU"]
[SourceTitle "playchess.com"]
[Source "ChessBase"]
[SourceQuality "1"]
[TimeControl "600+5"]

{[%evp 9,104,-23,-1,-26,0,-20,-26,-19,-21,-43,-27,-37,-26,-127,-45,-55,-47,-81,-102,-93,0,0,0,0,0,0,8,0,14,17,21,0,0,-8,-11,-133,-126,-157,-143,-141,-25,-45,-47,-45,-43,-74,-68,-106,-88,-100,-74,-121,-66,-214,-192,-270,-193,-412,-404,-439,-390,-914,-914,-904,-889,-856,-847,-807,-789,-621,-596,-1400,-1292,-4588,-2854,-5266,-5185,-29968,-29969,-29968,-29970,-29978,-29979,-29971,-29973,-29977,-29970,-29968,-219,-29984,-29964,-29980,-29981,-29979,-29977,-29986,-29987]} 1. d4 {[%emt 0:00:02]} Nf6 {[%emt 0:00:01]} 2. Nc3 {[%emt 0:00:00]} d5 {[%emt 0:00:02]} 3. Bf4 {[%emt 0:00:02]} a6 {[%emt 0:00:01]} 4. e3 {[%emt 0:00:03]} e6 {[%emt 0:00:05]} 5. Nf3 {[%emt 0:00:06]} b5 {[%emt 0:00:03]} 6. a3 {[%emt 0:00:02] D00: 1 d4 d5: Unusual lines.} Bb7 {[%emt 0:00:03]} 7. Bd3 {[%emt 0:00:13]} c5 {[%emt 0:00:05]} 8. dxc5 {[%emt 0:00:03] Black has an edge.} Bxc5 {[%emt 0:00:02]} 9. Ne5 {[%emt 0:00:07] [#]} Nbd7 $146 {[%emt 0:00:07]} ({Predecessor:} 9... Bd6 10. Bg3 Qc7 11. f4 Ne4 12. O-O Nxg3 13. hxg3 Bxe5 14. fxe5 Qxe5 15. Qf3 O-O {0-1 (44) Chinasamy,D (1970)-Avila Pavas,S (2453) Chennai 2022}) 10. Nxd7 {[%emt 0:00:16]} Qxd7 {[%emt 0:00:02]} 11. f3 {[%emt 0:00:21]} (11. Qf3 $11 {remains equal.}) 11... d4 {[%emt 0:00:12]} ({Better is} 11... Nh5 $17 12. Qd2 Nxf4 13. exf4 O-O) 12. Ne4 $15 {[%emt 0:00:49]} Nxe4 {[%emt 0:00:12]} (12... Bxe4 {feels hotter.} 13. fxe4 dxe3 14. Qe2 O-O) 13. Bxe4 {[%emt 0:00:02]} Bxe4 {[%emt 0:00:27]} (13... dxe3 $2 14. Qxd7+ Kxd7 15. Bxb7 $18) 14. fxe4 {[%emt 0:00:01]} O-O {[%emt 0:00:28]} ({Of course not} 14... dxe3 $6 15. Qxd7+ Kxd7 16. Ke2 $11) ({Black should play} 14... Qc6 $17 15. Qd3 Rd8) 15. exd4 $11 {[%emt 0:00:25]} Qxd4 {[%emt 0:00:19]} (15... Bxd4 $2 16. c3 $16) 16. Qxd4 {[%emt 0:00:01]} Bxd4 {[%emt 0:00:01]} 17. c3 {[%emt 0:00:07]} Bc5 {[%emt 0:00:04]} 18. O-O-O {[%emt 0:00:12]} Rfd8 {[%emt 0:00:18]} 19. Kc2 {[%emt 0:00:11]} Kf8 {[%emt 0:00:06]} 20. Be5 {[%emt 0:00:08]} f6 {[%emt 0:00:04]} 21. Bd4 {[%emt 0:00:03]} Bxd4 {[%emt 0:00:18]} 22. cxd4 {[%emt 0:00:04][%mdl 4096] Endgame KRR-KRR} (22. Rxd4 $11 Rxd4 23. cxd4) 22... Rac8+ $17 {[%emt 0:00:01]} 23. Kd3 {[%emt 0:00:01] [#]} Rc4 {[%emt 0:00:02]} 24. Ke3 {[%emt 0:00:49]} b4 {[%emt 0:00:06] Black is more active.} (24... Rc2 $17 25. Rd2 Rxd2 26. Kxd2 Rxd4+ 27. Ke3 Rc4) 25. axb4 {[%emt 0:00:29]} Rxb4 {[%emt 0:00:01]} 26. Rd2 {[%emt 0:00:14]} Rdb8 {[%emt 0:00:26]} 27. Rb1 {[%emt 0:00:49]} a5 {[%emt 0:00:01][%cal Ba6a5,Ba5a4][%mdl 32]} 28. g4 {[%emt 0:00:03]} a4 {[%emt 0:00:02] ...a3 is the strong threat.} 29. Ra1 {[%emt 0:00:22] Inhibits a3.} Rb3+ {[%emt 0:00:01]} ({Much worse is} 29... Rxb2 $6 30. Rxb2 Rxb2 31. Rxa4 $11) 30. Rd3 {[%emt 0:00:16] [#]} (30. Ke2 $142) 30... Rxb2 {[%emt 0:00:05]} (30... R8b4 $1 $17 31. Rxb3 Rxb3+ 32. Ke2 Rxb2+ 33. Kd3 Rb3+ 34. Kc4 Re3) 31. h4 {[%emt 0:00:08] White does not recover from this.} (31. Rxa4 $15 Rxh2 32. Kf4) 31... R8b4 {[%emt 0:00:13]} 32. d5 {[%emt 0:00:06]} (32. h5 $142) 32... exd5 {[%emt 0:00:02]} 33. exd5 {[%emt 0:00:01]} (33. Rxd5 Rg2 34. g5) 33... Rxg4 $19 {[%emt 0:00:30]} 34. d6 {[%emt 0:00:28]} Rxh4 {[%emt 0:00:37] aiming for ...Rh3+.} 35. Rc1 $2 {[%emt 0:01:03]} (35. Rdd1 Rb8 36. Kf2) 35... Rh3+ {[%emt 0:00:04]} 36. Kd4 {[%emt 0:00:05]} Rxd3+ {[%emt 0:00:20]} 37. Kxd3 {[%emt 0:00:01] KR-KR} Rb6 {[%emt 0:00:06]} 38. Rc8+ {[%emt 0:00:09]} Kf7 {[%emt 0:00:01]} 39. Rc7+ {[%emt 0:00:01]} Ke6 {[%emt 0:00:02]} 40. Rxg7 {[%emt 0:00:26]} Rxd6+ {[%emt 0:00:03]} 41. Kc3 {[%emt 0:00:02]} h5 {[%emt 0:00:02]} 42. Ra7 {[%emt 0:00:07]} Kf5 {[%emt 0:00:11][%cal Oa4a3] Strongly threatening ...a3!} 43. Rxa4 {[%emt 0:00:02]} Kg5 {[%emt 0:00:01]} 44. Ra8 {[%emt 0:00:19]} f5 {[%emt 0:00:03]} 45. Rg8+ {[%emt 0:00:09]} Rg6 {[%emt 0:00:01]} 46. Ra8 {[%emt 0:00:32]} h4 {[%emt 0:00:02]} 47. Kd3 {[%emt 0:00:01]} Kg4 {[%emt 0:00:08]} 48. Ke2 {[%emt 0:00:05]} h3 $2 {[%emt 0:00:06]} (48... Kg3 {mates} 49. Ra5 f4 50. Ra3+ Kg2 51. Ke1 f3 52. Ra2+ Kg1 53. Ra1 Rg2 54. Ra4 f2+ 55. Ke2 f1=Q+ 56. Ke3 Qc1+ 57. Kf3 Rg3+ 58. Ke4 Qe3+ 59. Kd5 Rg5+ 60. Kd6 Qb6+ 61. Ke7 Rg7+ 62. Kf8 Qf6+ 63. Ke8 Qe7#) 49. Rh8 $2 {[%emt 0:00:07]} (49. Kf2 $19) 49... Ra6 {[%emt 0:00:14] Black mates.} 50. Rg8+ {[%emt 0:00:16]} Kf4 {[%emt 0:00:01]} 51. Rh8 {[%emt 0:00:15]} Ra2+ {[%emt 0:00:05]} 52. Kf1 {[%emt 0:00:02]} h2 {[%emt 0:00:02] Weighted Error Value: White=0.91/Black=0.19 (very precise)} 0-1